bitfinex/quotes_SOLUSD_20260308
["timestamp","ask_amount","ask_price","bid_price","bid_amount"]
[1772991265967,12.28229629,81.418,81.364,3.69383402]
[1772991266170,12.27912916,81.439,81.366,0.46132632]
[1772991266954,12.27912916,81.439,81.367,1.37116104]
[1772991267160,12.27912916,81.439,81.372,0.46132632]
[1772991267355,12.27912916,81.439,81.377,0.46132632]
[1772991267556,12.27912916,81.439,81.378,0.46132632]
[1772991268162,0.47668837,81.438,81.378,0.46132632]
[1772991268365,4.81140654,81.4,81.378,0.46132632]
[1772991268679,0.47668837,81.389,81.362,0.46132632]
[1772991268984,0.47668837,81.389,81.356,12.29155193]
[1772991269153,4.81140654,81.38,81.355,0.46132632]
[1772991269352,17.09948195,81.38,81.355,0.46132632]
[1772991269553,24.37238585,81.38,81.355,0.46132632]
[1772991269754,12.28625761,81.392,81.357,0.46132632]
[1772991269976,12.28553105,81.397,81.357,0.46132632]
[1772991270675,12.28474581,81.402,81.358,0.46132632]
[1772991271464,12.08431044,81.4,81.361,0.46132632]
[1772991271877,0.47668837,81.408,81.361,0.46132632]
[1772991272387,12.08431044,81.4,81.361,0.46132632]
[1772991272888,12.08431044,81.4,81.338,3.69383402]
[1772991272889,12.08431044,81.38,81.348,30.73200811]
[1772991273183,0.48710504,81.379,81.348,31.1901467]
[1772991273384,0.48710504,81.379,81.35,12.29256299]
[1772991273557,0.48710504,81.388,81.351,0.45813859]
[1772991273761,12.08431044,81.4,81.352,0.45813859]
[1772991274159,25.28755426,81.414,81.355,0.45813859]
[1772991274990,12.08431044,81.43,81.36,0.45813859]
[1772991275160,0.48710504,81.429,81.361,0.45813859]
[1772991275356,12.76789297,81.428,81.368,0.45813859]
[1772991275581,0.48710504,81.427,81.369,0.45813859]
[1772991276679,0.48710504,81.425,81.375,0.45813859]
[1772991277662,0.48710504,81.447,81.378,0.45813859]
[1772991277961,0.48710504,81.446,81.378,0.45813859]
[1772991278171,0.48710504,81.429,81.378,0.45813859]
[1772991280162,0.48710504,81.427,81.381,0.45813859]
[1772991281289,0.48710504,81.409,81.379,12.28818245]
[1772991282473,12.76774215,81.429,81.381,0.45813859]
[1772991282668,0.48710504,81.428,81.381,0.45813859]
[1772991284373,0.48710504,81.426,81.383,0.45813859]
[1772991284569,0.48710504,81.419,81.383,0.45813859]
[1772991286488,0.48710504,81.417,81.384,12.2874275]
[1772991286989,0.48710504,81.417,81.385,0.45813859]
[1772991287979,12.28229629,81.418,81.385,0.45813859]
[1772991289190,0.48710504,81.418,81.387,0.45813859]
[1772991289509,0.48710504,81.428,81.387,0.45813859]
[1772991290501,0.48710504,81.428,81.386,12.28712554]
[1772991290731,0.48710504,81.428,81.387,0.45813859]
[1772991290876,0.48710504,81.428,81.386,12.28712554]
[1772991291196,0.48710504,81.417,81.381,12.7458964]
[1772991291578,0.48710504,81.417,81.381,12.28775781]
[1772991291781,4.83067924,81.41,81.381,12.28775781]
[1772991291992,0.48710504,81.409,81.381,12.28775781]
[1772991292195,0.48710504,81.417,81.382,0.45813859]
[1772991292500,0.48710504,81.417,81.383,0.45813859]
[1772991293278,0.48710504,81.417,81.374,61.44458381]
[1772991293279,0.48710504,81.435,81.386,0.45813859]
[1772991294395,12.27870249,81.442,81.386,0.45813859]
[1772991294899,0.48710504,81.443,81.386,0.45813859]
[1772991295086,3.69383402,81.47,81.385,0.28432314]
[1772991295087,0.48710504,81.467,81.389,0.45813859]
[1772991295281,0.48710504,81.465,81.403,0.45813859]
[1772991295682,0.48710504,81.459,81.403,0.45813859]
[1772991297502,0.48710504,81.458,81.406,0.45813859]
[1772991300289,0.48710504,81.458,81.409,0.45813859]
[1772991300696,0.48710504,81.456,81.409,0.45813859]
[1772991302114,0.48710504,81.475,81.412,0.45813859]
[1772991302316,4.83067924,81.49,81.418,0.45813859]
[1772991302317,0.48710504,81.473,81.418,0.45813859]
[1772991303014,0.49609787,81.482,81.421,0.48633044]
[1772991303188,0.49609787,81.482,81.419,108.59383402]
[1772991303189,0.49609787,81.498,81.424,0.48633044]
[1772991303390,62.05824962,81.517,81.424,0.48633044]
[1772991303391,0.49609787,81.509,81.425,6.05289973]
[1772991303592,12.7646817,81.509,81.443,0.48633044]
[1772991303812,0.49609787,81.508,81.443,0.48633044]
[1772991304401,0.49609787,81.506,81.446,0.48633044]
[1772991306915,0.48573571,81.499,81.448,0.45073774]
[1772991307697,0.48573571,81.499,81.449,0.45073774]
[1772991309888,12.75597547,81.498,81.452,0.45073774]
[1772991310604,0.2,81.52,81.452,0.45073774]
[1772991310813,0.48573571,81.515,81.452,0.45073774]
[1772991310996,0.48573571,81.514,81.452,0.45073774]
[1772991312014,0.48573571,81.512,81.455,0.45073774]
[1772991314890,0.48573571,81.509,81.458,0.45073774]
[1772991316612,0.2,81.52,81.461,0.45073774]
[1772991316800,0.2,81.52,81.467,0.45073774]
[1772991317597,0.48573571,81.537,81.471,3.69383402]
[1772991317923,12.26360213,81.543,81.474,0.45073774]
[1772991317924,0.48573571,81.542,81.474,0.45073774]
[1772991319695,0.48573571,81.54,81.476,0.45073774]
[1772991320015,0.48573571,81.539,81.477,0.45073774]
[1772991322812,0.48573571,81.539,81.476,0.28432314]
[1772991322813,0.48573571,81.537,81.48,0.45073774]
[1772991323123,0.48573571,81.529,81.48,0.45073774]
[1772991324824,0.48573571,81.527,81.482,0.14216157]
[1772991325022,0.48573571,81.527,81.483,0.45073774]
[1772991326629,0.48573571,81.527,81.459,104.9]
[1772991326630,0.48573571,81.519,81.474,12.27372551]
[1772991327126,0.48573571,81.517,81.472,0.45073774]
[1772991328833,0.48573571,81.515,81.474,0.45073774]
[1772991331316,4.81615087,81.52,81.476,0.45073774]
[1772991331317,0.48573571,81.513,81.476,0.45073774]
[1772991331732,0.48573571,81.499,81.445,0.45073774]
[1772991332039,0.48573571,81.499,81.448,0.45073774]
[1772991333129,0.45558571,81.489,81.448,0.45073774]
[1772991333331,0.45558571,81.487,81.451,0.48577066]
[1772991335333,12.27204673,81.486,81.452,12.27716937]
[1772991335534,0.45558571,81.485,81.452,12.27716937]
[1772991336830,0.45558571,81.479,81.444,12.76406185]
[1772991337038,0.45558571,81.479,81.444,12.27829119]
[1772991337714,0.45558571,81.477,81.44,0.48577066]
[1772991337924,0.45558571,81.498,81.44,0.48577066]
[1772991342026,0.45558571,81.496,81.443,0.48577066]
[1772991342649,61.33909141,81.515,81.443,0.48577066]
[1772991342650,12.72520155,81.503,81.447,0.48577066]
[1772991342851,12.72520155,81.503,81.448,0.48577066]
[1772991343323,0.45558571,81.502,81.448,0.48577066]
[1772991346042,12.2697881,81.501,81.451,0.48577066]
[1772991346547,12.72537381,81.501,81.451,0.48577066]
[1772991347742,0.45558571,81.5,81.451,0.48577066]
[1772991348646,12.2700892,81.499,81.452,42.9700928]
[1772991348837,0.45558571,81.498,81.454,0.48577066]
[1772991351850,0.45558571,81.496,81.457,0.48577066]
[1772991353527,12.27069145,81.495,81.459,0.28432314]
[1772991353733,0.45558571,81.489,81.45,0.48577066]
[1772991353940,0.45558571,81.489,81.451,12.2773201]
[1772991354657,0.45558571,81.489,81.451,12.76309076]
[1772991354950,0.45558571,81.489,81.452,0.48577066]
[1772991355849,0.45558571,81.487,81.453,12.27701864]
[1772991356054,0.45558571,81.487,81.454,0.48577066]
[1772991357148,0.45558571,81.485,81.448,12.27777232]
[1772991357447,0.45558571,81.479,81.448,12.27777232]
[1772991357853,0.45558571,81.479,81.442,12.27862625]
[1772991359147,12.27325167,81.478,81.443,0.48577066]
[1772991359542,12.27274995,81.482,81.443,0.48577066]
[1772991359842,0.45558571,81.481,81.443,0.48577066]
[1772991362245,4.8194878,81.49,81.445,0.48577066]
[1772991362246,0.45558571,81.479,81.445,0.48577066]
[1772991364157,12.27159493,81.489,81.448,0.48932708]
[1772991364357,0.49092524,81.519,81.451,0.48932708]
[1772991364550,0.49092524,81.519,81.454,0.48932708]
[1772991364864,12.26632648,81.524,81.457,0.48932708]
[1772991365153,0.49092524,81.523,81.459,0.48932708]
[1772991365551,0.49092524,81.523,81.461,0.48656687]
[1772991365950,0.49092524,81.523,81.463,0.48656687]
[1772991366345,0.46916294,81.521,81.468,0.48656687]
[1772991366547,0.46916294,81.521,81.471,0.48656687]
[1772991366956,0.46916294,81.521,81.473,0.48656687]
[1772991369565,12.7360913,81.52,81.476,0.48656687]
[1772991369761,0.46916294,81.526,81.476,0.48656687]
[1772991370064,30.66230291,81.534,81.476,0.48656687]
[1772991370065,0.46916294,81.542,81.481,0.48656687]
[1772991371858,0.46916294,81.539,81.484,0.48656687]
[1772991372951,0.46916294,81.537,81.487,0.48656687]
[1772991374261,12.26452119,81.536,81.489,0.28432314]
[1772991374467,0.46916294,81.535,81.49,0.48656687]
[1772991376271,0.46916294,81.533,81.493,0.48656687]
[1772991377070,0.46916294,81.529,81.491,12.27129376]
[1772991378070,12.04242604,81.5,81.425,0.5]
[1772991378301,12.27159493,81.489,81.433,0.5]
[1772991378460,12.27159493,81.489,81.435,0.5]
[1772991378659,12.27159493,81.489,81.429,42.9822299]
[1772991378660,12.04242604,81.46,81.436,0.32797546]
[1772991379076,12.04242604,81.45,81.4,0.5]
[1772991379374,12.04242604,81.44,81.402,0.5]
[1772991379777,12.04242604,81.45,81.403,0.5]
[1772991380366,12.27762157,81.449,81.406,0.5]
[1772991382174,12.27566227,81.462,81.406,0.5]
[1772991382481,12.27611436,81.459,81.409,0.5]
[1772991385569,12.27611436,81.459,81.412,0.5]
[1772991386370,12.27400488,81.473,81.415,0.5]
[1772991387270,12.27400488,81.473,81.414,0.28432314]
[1772991387271,42.92529771,81.537,81.425,0.5]
[1772991387479,12.04242604,81.5,81.44,0.5]
[1772991387677,12.04242604,81.49,81.44,0.5]
[1772991387883,4.82477569,81.533,81.44,0.5]
[1772991388091,12.04242604,81.49,81.44,0.5]
[1772991388271,12.04242604,81.5,81.44,0.5]
[1772991388988,12.04242604,81.49,81.44,0.5]
[1772991390289,12.27159493,81.489,81.443,0.5]
[1772991392388,12.27159493,81.489,81.427,61.40466557]
[1772991392389,12.27100248,81.493,81.446,0.5]
[1772991393995,12.04242604,81.49,81.448,0.5]
[1772991396298,42.95058227,81.489,81.45,0.5]
[1772991397598,42.95058227,81.489,81.427,61.40466557]
[1772991397599,12.04242604,81.47,81.427,0.5]
[1772991398100,12.04242604,81.48,81.427,0.5]
[1772991399298,42.95585365,81.479,81.429,0.78432314]
[1772991399599,42.95585365,81.479,81.43,0.5]
[1772991400890,12.04242604,81.47,81.43,0.5]
[1772991401602,12.04242604,81.47,81.431,12.28033549]
[1772991401603,42.9611263,81.469,81.431,12.28033549]
[1772991402898,42.9611263,81.469,81.432,0.5]
[1772991403482,42.9611263,81.469,81.434,0.5]
[1772991404282,30.68216917,81.481,81.435,0.5]
[1772991405917,30.68216917,81.481,81.438,0.5]
[1772991408807,30.68216917,81.481,81.441,0.5]
[1772991410310,12.27159493,81.489,81.441,0.5]
[1772991410491,4.82233157,81.48,81.441,0.5]
[1772991410827,12.27310104,81.479,81.443,0.5]
[1772991411383,30.67898734,81.489,81.443,0.5]
[1772991411602,12.27174553,81.488,81.443,0.5]
[1772991411902,12.27174553,81.488,81.444,0.5]
[1772991412898,42.94557045,81.499,81.446,0.78432314]
[1772991413111,4.82233157,81.49,81.447,0.5]
[1772991415094,12.27148477,81.49,81.45,0.5]
[1772991417816,42.94557045,81.499,81.453,0.5]
[1772991420809,42.94557045,81.499,81.455,0.5]
[1772991423705,42.94557045,81.499,81.456,12.27656648]
[1772991423906,42.94557045,81.499,81.457,0.5]
[1772991426723,42.94557045,81.499,81.458,12.27626506]
[1772991426913,42.94557045,81.499,81.459,0.5]
[1772991430104,42.94557045,81.499,81.461,0.5]
[1772991432716,42.94557045,81.499,81.462,12.27566227]
[1772991433809,42.94557045,81.499,81.46,0.5]
[1772991434036,4.82089363,81.49,81.457,12.27630558]
[1772991436127,42.95058227,81.489,81.455,0.5]
[1772991436527,4.82089363,81.48,81.453,12.27699917]
[1772991436839,4.82089363,81.47,81.43,0.5]
[1772991437717,4.82089363,81.47,81.431,0.5]
[1772991438337,12.27460751,81.469,81.432,12.28018469]
[1772991438515,4.82089363,81.46,81.433,0.5]
[1772991440440,12.27611436,81.459,81.433,0.5]
[1772991440814,42.96640027,81.459,81.433,0.5]
[1772991442120,4.82089363,81.45,81.427,0.5]
[1772991442937,4.82089363,81.46,81.427,0.5]
[1772991443321,42.96059898,81.47,81.427,0.5]
[1772991443322,4.82089363,81.45,81.427,0.5]
[1772991443830,4.82089363,81.46,81.427,0.5]
[1772991444740,4.82089363,81.44,81.412,0.5]
[1772991445131,3.69383402,81.467,81.398,0.14216157]
[1772991445132,4.82089363,81.43,81.398,0.5]
[1772991445331,4.82089363,81.43,81.399,0.5]
[1772991446318,42.97695207,81.439,81.399,0.5]
[1772991447239,42.97695207,81.439,81.401,0.5]
[1772991448112,12.27912916,81.439,81.402,0.5]
[1772991449334,4.82089363,81.44,81.403,12.28455953]
[1772991449539,4.82089363,81.44,81.404,0.5]
[1772991449735,4.82089363,81.45,81.404,0.5]
[1772991451822,12.27762157,81.449,81.406,0.5]
[1772991452024,12.27762157,81.449,81.407,0.5]
[1772991453023,12.27711307,81.453,81.41,0.5]
[1772991454432,12.27611436,81.459,81.413,0.5]
[1772991455949,4.82089363,81.45,81.413,0.5]
[1772991456650,42.97167551,81.449,81.413,0.5]
[1772991458959,4.82089363,81.44,81.413,0.5]
[1772991459135,4.82089363,81.44,81.414,12.28289974]
[1772991459342,4.82089363,81.44,81.415,0.5]
[1772991459542,4.82089363,81.45,81.415,0.5]
[1772991464251,4.82089363,81.46,81.417,0.5]
[1772991465358,12.27385423,81.474,81.421,0.5]
[1772991465865,4.82089363,81.5,81.421,0.5]
[1772991466172,12.2700892,81.499,81.426,0.5]
[1772991466361,42.9453122,81.499,81.427,0.5]
[1772991466666,4.82089363,81.49,81.427,0.5]
[1772991468460,42.95058227,81.489,81.43,0.5]
[1772991469744,12.2700892,81.499,81.43,0.5]
[1772991470459,12.2700892,81.499,81.436,0.5]
[1772991471952,12.2700892,81.499,81.438,0.5]
[1772991472149,12.26858383,81.509,81.442,3.69383402]
[1772991472351,12.26858383,81.509,81.444,0.5]
[1772991472663,4.82089363,81.51,81.45,0.5]
[1772991475156,42.94004342,81.509,81.452,0.28432314]
[1772991475364,42.94004342,81.509,81.453,0.5]
[1772991477866,42.94004342,81.509,81.448,3.69383402]
[1772991477867,42.94004342,81.509,81.456,0.5]
[1772991480166,104.54298272,81.528,81.459,0.5]
[1772991480366,4.82089363,81.51,81.459,0.5]
[1772991482256,4.82089363,81.51,81.445,61.39112284]
[1772991482257,3.69383402,81.506,81.447,0.5]
[1772991482459,4.82089363,81.48,81.422,0.5]
[1772991482771,4.82089363,81.46,81.426,0.5]
[1772991482967,4.82089363,81.47,81.426,0.5]
[1772991483860,12.27460751,81.469,81.428,0.5]
[1772991484056,4.82089363,81.49,81.429,0.5]
[1772991484370,4.82089363,81.5,81.429,0.5]
[1772991484572,4.82089363,81.52,81.436,0.5]
[1772991485366,4.82089363,81.52,81.438,0.5]
[1772991485564,4.82089363,81.52,81.439,0.5]
[1772991486562,4.82089363,81.52,81.444,0.5]
[1772991486563,42.93477594,81.519,81.444,0.5]
[1772991486872,42.93477594,81.519,81.445,0.5]
[1772991488871,42.93477594,81.519,81.45,0.5]
[1772991489182,42.93477594,81.519,81.451,0.5]
[1772991491560,42.93477594,81.519,81.456,0.28432314]
[1772991491777,42.93477594,81.519,81.457,0.5]
[1772991495372,4.81806983,81.53,81.46,0.5]
[1772991495580,4.81806983,81.52,81.46,0.5]
[1772991498889,42.93477594,81.519,81.462,0.28432314]
[1772991499068,42.93477594,81.519,81.463,0.5]
[1772991501564,42.93477594,81.519,81.466,0.5]
[1772991502969,4.81806983,81.51,81.466,0.5]
[1772991503592,4.81806983,81.51,81.455,3.69383402]
[1772991503593,12.26858383,81.509,81.468,0.5]
[1772991504889,42.94004342,81.509,81.468,0.5]
[1772991507984,42.94004342,81.509,81.47,0.5]
[1772991509088,12.26722932,81.518,81.471,0.5]
[1772991510911,12.26617601,81.525,81.474,0.5]
[1772991511206,42.93161605,81.525,81.474,0.5]
[1772991511706,12.26617601,81.525,81.474,0.5]
[1772991513701,30.66228797,81.534,81.477,0.5]
[1772991514290,4.81806983,81.53,81.477,0.5]
[1772991516212,30.66228797,81.534,81.48,0.5]
[1772991521527,30.65491152,81.553,81.482,0.5]
[1772991521702,30.65491152,81.553,81.486,0.5]
[1772991522022,4.81806983,81.55,81.486,0.5]
[1772991523411,30.65491152,81.553,81.486,0.5]
[1772991524019,30.65491152,81.553,81.488,0.28432314]
[1772991524217,30.65491152,81.553,81.489,0.5]
[1772991526423,30.65491152,81.553,81.492,0.5]
[1772991526621,4.81806983,81.55,81.492,0.5]
[1772991529020,42.91898122,81.549,81.495,0.5]
[1772991531325,42.91898122,81.549,81.498,0.5]
[1772991531530,4.81806983,81.56,81.501,0.5]
[1772991533915,42.91371889,81.559,81.503,0.5]
[1772991536222,42.91371889,81.559,81.506,0.5]
[1772991536931,12.26106254,81.559,81.506,0.5]
[1772991537733,42.91371889,81.559,81.506,0.5]
[1772991540238,42.91371889,81.559,81.499,3.69383402]
[1772991540239,42.91371889,81.559,81.508,0.5]
[1772991540449,49.4,81.558,81.508,0.5]
[1772991543639,42.91477125,81.557,81.51,0.5]
[1772991543836,49.4,81.556,81.51,0.5]
[1772991544717,42.91582366,81.555,81.512,0.5]
[1772991546921,42.91582366,81.555,81.514,0.5]
[1772991549841,42.91582366,81.555,81.516,0.5]
[1772991551729,30.65415976,81.555,81.518,0.5]
[1772991553945,4.81370875,81.55,81.513,12.76788515]
[1772991554150,4.81370875,81.55,81.514,0.5]
[1772991555027,42.91898122,81.549,81.514,0.5]
[1772991555724,42.91898122,81.549,81.516,0.5]
[1772991560443,4.81370875,81.54,81.511,12.26823597]
[1772991560651,4.81370875,81.54,81.505,0.5]
[1772991562446,4.81370875,81.53,81.505,0.5]
[1772991562947,4.81370875,81.53,81.498,12.27016539]
[1772991562948,4.81370875,81.53,81.499,0.5]
[1772991563543,12.26557421,81.529,81.501,0.5]
[1772991564650,12.26557421,81.529,81.5,12.26993865]
[1772991564651,4.81370875,81.52,81.468,0.5]
[1772991565232,4.81370875,81.52,81.469,0.5]
[1772991565952,12.26707884,81.519,81.472,0.5]
[1772991566153,42.93477594,81.519,81.472,0.5]
[1772991566848,4.81370875,81.51,81.472,0.5]
[1772991568529,42.94004342,81.509,81.474,0.5]
[1772991570249,4.81370875,81.5,81.474,0.5]
[1772991570757,12.2700892,81.499,81.474,0.5]
[1772991571448,12.2700892,81.499,81.476,0.5]
[1772991572365,12.2700892,81.499,81.47,0.5]
[1772991573357,12.2700892,81.499,81.471,0.5]
[1772991574961,42.94021752,81.509,81.473,0.5]
[1772991575665,4.81370875,81.5,81.473,0.5]
[1772991577256,4.81370875,81.51,81.475,0.5]
[1772991577758,4.81370875,81.52,81.475,0.5]
[1772991577940,49.4,81.519,81.475,0.5]
[1772991578139,4.81370875,81.51,81.475,0.5]
[1772991578956,12.26858383,81.509,81.476,12.27355294]
[1772991579147,12.26858383,81.509,81.477,0.5]
[1772991581371,30.66926629,81.515,81.479,0.5]
[1772991582054,4.81370875,81.51,81.479,0.5]
[1772991582367,30.66926629,81.515,81.479,0.5]
[1772991585668,30.66926629,81.515,81.481,0.5]
[1772991587683,4.81370875,81.51,81.481,0.5]
[1772991588475,30.66926629,81.515,81.483,0.5]
[1772991592269,4.81370875,81.51,81.475,0.5]
[1772991594976,42.94004342,81.509,81.475,0.5]
[1772991601874,42.94004342,81.509,81.47,0.5]
[1772991601875,4.81370875,81.5,81.47,0.5]
[1772991602870,42.9453122,81.499,81.47,0.5]
[1772991604073,49.4,81.508,81.472,0.5]
[1772991604278,49.4,81.508,81.473,0.5]
[1772991604279,12.26941543,81.504,81.473,0.5]
[1772991605864,12.26941543,81.504,81.475,0.5]
[1772991609580,4.8197895,81.51,81.475,0.5]
[1772991611769,42.94004342,81.509,81.475,0.5]
[1772991621180,42.94004342,81.509,81.477,0.5]
[1772991623001,42.94004342,81.509,81.451,61.38644819]
[1772991623002,4.8197895,81.49,81.455,0.5]
[1772991623181,104.2829626,81.509,81.368,49.15931789]
[1772991623182,4.8197895,81.48,81.443,12.27852608]
[1772991623387,4.8197895,81.5,81.444,0.5]
[1772991623388,4.8197895,81.47,81.444,0.5]
[1772991623691,4.8197895,81.48,81.444,0.5]
[1772991624800,12.27310104,81.479,81.446,0.5]
[1772991626388,4.8197895,81.49,81.446,0.5]
[1772991626610,12.26918593,81.505,81.447,0.5]
[1772991626802,73.61150301,81.509,81.45,0.5]
[1772991626980,104.2829626,81.509,81.45,0.5]
[1772991628016,12.26858383,81.509,81.45,0.5]
[1772991628184,12.26722932,81.518,81.453,0.5]
[1772991629103,12.26722932,81.518,81.459,0.5]
[1772991631197,30.66412494,81.529,81.459,0.5]
[1772991631402,42.92424483,81.539,81.464,0.28432314]
[1772991631607,42.92424483,81.539,81.465,0.5]
[1772991636416,42.92424483,81.539,81.47,0.5]
[1772991636617,42.92424483,81.539,81.471,0.5]
[1772991640113,42.92424483,81.539,81.476,0.28432314]
[1772991640313,42.92424483,81.539,81.477,0.5]
[1772991642911,42.92424483,81.539,81.48,0.5]
[1772991646218,42.92424483,81.539,81.483,0.5]
[1772991648923,4.8197895,81.53,81.485,0.5]
[1772991649111,4.8197895,81.53,81.486,0.5]
[1772991651609,12.26557421,81.529,81.487,42.95163645]
[1772991651814,12.26557421,81.529,81.489,0.5]
[1772991652417,12.26422036,81.538,81.489,0.5]
[1772991652916,42.92477126,81.538,81.489,0.5]
[1772991655005,42.92477126,81.538,81.492,0.5]
[1772991657432,30.6605509,81.538,81.494,0.5]
[1772991658312,49.4,81.545,81.494,0.78432314]
[1772991658516,12.26260393,81.549,81.495,0.5]
[1772991659521,42.91371889,81.559,81.498,0.5]
[1772991661810,4.8197895,81.55,81.501,0.5]
[1772991662026,42.91371889,81.559,81.501,0.5]
[1772991666635,61.30153072,81.565,81.504,0.5]
[1772991666932,4.8197895,81.56,81.504,0.5]
[1772991669341,42.91371889,81.559,81.507,0.5]
[1772991677952,4.81359989,81.55,81.51,0.5]
[1772991678850,30.65265635,81.559,81.51,0.5]
[1772991678851,4.81359989,81.54,81.51,0.5]
[1772991681255,4.81359989,81.55,81.512,0.5]
[1772991682939,42.91477125,81.557,81.512,0.5]
[1772991683140,42.91477125,81.557,81.513,0.5]
[1772991683457,42.91477125,81.557,81.515,0.5]
[1772991685459,12.2601606,81.565,81.517,0.5]
[1772991685655,4.81359989,81.56,81.517,0.5]
[1772991690661,4.81359989,81.55,81.519,0.5]
[1772991691865,12.26256606,81.549,81.519,0.5]
[1772991692166,12.26256606,81.549,81.521,0.5]
[1772991699675,30.65265635,81.559,81.522,12.26662741]
[1772991699876,4.81359989,81.55,81.523,0.5]
[1772991703471,0.46685963,81.548,81.517,12.26734858]
[1772991703672,0.46685963,81.539,81.499,0.28432314]
[1772991704174,0.46685963,81.539,81.499,0.14216157]
[1772991704367,0.46685963,81.539,81.499,0.28432314]
[1772991705583,0.46685963,81.537,81.503,0.47919331]
[1772991708066,0.46685963,81.537,81.504,42.94267765]
[1772991708384,0.46685963,81.537,81.505,0.47919331]
[1772991708975,0.46685963,81.535,81.505,0.47919331]
[1772991717182,0.46685963,81.533,81.507,0.47919331]
[1772991720394,12.26455846,81.536,81.496,0.47919331]
[1772991720593,0.46685963,81.538,81.496,0.47919331]
[1772991721491,0.46685963,81.558,81.499,0.47919331]
[1772991722279,30.8485443,81.57,81.504,0.47919331]
[1772991722588,0.46685963,81.568,81.505,0.47919331]
[1772991726981,0.46780893,81.566,81.511,0.45648421]
[1772991729585,0.46780893,81.564,81.514,0.45648421]
[1772991733182,0.46780893,81.562,81.516,0.28432314]
[1772991733478,0.46780893,81.562,81.517,0.45648421]
[1772991736090,0.46780893,81.56,81.519,0.28432314]
[1772991736293,0.46780893,81.56,81.52,0.45648421]
[1772991739113,0.46780893,81.558,81.523,0.45648421]
[1772991739301,0.46780893,81.558,81.522,0.28432314]
[1772991739501,0.46780893,81.558,81.523,0.45648421]
[1772991740297,12.26136321,81.557,81.524,12.26632648]
[1772991740613,0.46780893,81.556,81.525,0.45648421]
[1772991744804,0.46780893,81.554,81.527,0.45648421]
[1772991745214,0.46780893,81.554,81.523,0.45648421]
[1772991747922,0.46780893,81.552,81.525,0.45648421]
[1772991749824,0.46780893,81.552,81.527,0.45648421]
[1772991753633,0.45444217,81.55,81.529,0.46605812]
[1772991756814,0.45444217,81.55,81.39,33.96841035]
[1772991756815,0.45444217,81.548,81.521,0.46605812]
[1772991757010,0.45444217,81.548,81.52,12.26692836]
[1772991757328,0.45444217,81.548,81.513,12.26798106]
[1772991757511,0.45444217,81.548,81.514,0.46605812]
[1772991760132,0.45444217,81.546,81.514,0.46605812]
[1772991762233,0.45444217,81.544,81.514,0.46605812]
[1772991765032,0.45444217,81.542,81.516,0.46605812]
[1772991769120,0.45444217,81.54,81.516,0.46605812]
[1772991772141,0.45444217,81.538,81.516,0.46605812]
[1772991773538,0.45444217,81.536,81.495,12.27069145]
[1772991773729,0.45444217,81.529,81.497,0.46605812]
[1772991774625,0.45444217,81.536,81.497,0.46605812]
[1772991777741,0.45444217,81.534,81.499,0.75038126]
[1772991777946,0.45444217,81.534,81.5,0.46605812]
[1772991780931,30.66092694,81.537,81.503,0.46605812]
[1772991780932,0.45444217,81.532,81.503,0.46605812]
[1772991783053,12.26439723,81.537,81.505,0.47242443]
[1772991784150,12.26439723,81.537,81.506,12.2690354]
[1772991784332,12.26439723,81.537,81.507,0.47242443]
[1772991785649,0.46452181,81.538,81.509,0.46264088]
[1772991786958,0.46452181,81.548,81.51,0.46264088]
[1772991790856,12.26106254,81.559,81.513,0.46264088]
[1772991791044,0.46452181,81.558,81.513,0.46264088]
[1772991793685,0.46452181,81.549,81.515,0.46264088]
[1772991798363,0.46452181,81.547,81.517,0.46264088]
[1772991802664,30.65360349,81.557,81.517,0.46264088]
[1772991802665,0.46452181,81.545,81.517,0.46264088]
[1772991805386,0.46452181,81.543,81.517,0.46264088]
[1772991805666,0.46452181,81.543,81.519,0.46264088]
[1772991808175,0.46452181,81.541,81.519,0.46264088]
[1772991814167,0.47124299,81.539,81.519,0.46264088]
[1772991815468,0.47124299,81.557,81.521,0.47244425]
[1772991817375,0.47124299,81.555,81.521,0.47244425]
[1772991820178,0.47124299,81.553,81.521,0.47244425]
[1772991820585,0.47124299,81.553,81.523,0.47244425]
[1772991822575,0.47124299,81.551,81.523,0.47244425]
[1772991823989,42.91740238,81.552,81.506,0.47244425]
[1772991823990,0.47124299,81.539,81.506,0.47244425]
[1772991824653,0.47124299,81.537,81.508,0.47244425]
[1772991828698,0.47124299,81.535,81.51,0.47244425]